[Event "Marshall CC U2400 October 2024"]
[Site "New York"]
[Date "2024.10.19"]
[Round "1.8"]
[White "Raitzin, Misha"]
[Black "Wang, Connor Junda"]
[Result "1/2-1/2"]
[ECO "D00"]
[WhiteElo "1784"]
[BlackElo "1851"]
[Annotator "NA RC"]
[PlyCount "109"]
[EventDate "2024.04.20"]
[EventType "swiss"]
[EventCountry "USA"]
[SourceTitle "playchess.com"]
[Source "ChessBase"]
[SourceQuality "1"]
[TimeControl "5400+30"]

1. d4 {[%emt 0:09:33]} d5 {[%emt 0:00:03]} 2. Bf4 {[%emt 0:00:35]} c5 {[%emt 0:00:08]} 3. e4 {[%emt 0:00:03]} dxe4 {[%emt 0:03:34]} 4. d5 {[%emt 0:00:07]} Nf6 {[%emt 0:04:22]} 5. Nc3 {[%emt 0:00:07]} a6 {[%emt 0:01:03]} 6. Qe2 {[%emt 0:02:44] D00: 1 d4 d5: Unusual lines.} Qb6 {[%emt 0:14:56]} 7. O-O-O {[%emt 0:06:53]} Bf5 {[%emt 0:04:51]} 8. h3 {[%emt 0:01:28]} h5 {[%emt 0:03:07]} 9. g3 {[%emt 0:03:42]} (9. f3 $16 e3 10. Qxe3 (10. Bxe3 g6 $16)) 9... g6 {[%emt 0:02:06]} 10. Bg2 {[%emt 0:00:20]} Bg7 {[%emt 0:00:17]} 11. f3 {[%emt 0:24:50]} exf3 {[%emt 1:01:33]} 12. Nxf3 {[%emt 0:01:14]} O-O {[%emt 0:00:00]} 13. Qxe7 {[%emt 0:06:28]} Nbd7 {[%emt 0:00:00]} 14. Rhe1 {[%emt 0:09:11]} (14. Nh4 $15 Be4 15. Nxe4 (15. Bxe4 Rfe8 $11) 15... Nxe4 16. c3 (16. Qxe4 $2 {perishes.} Qxb2+ 17. Kd2 Qc3+ 18. Kc1 Rfe8 $19)) 14... Rfe8 {[%emt 0:00:00]} 15. Qd6 {[%emt 0:00:09]} Ne4 {[%emt 0:00:00]} 16. Rxe4 {[%emt 0:06:46]} Rxe4 {[%emt 0:00:00]} 17. Qxb6 {[%emt 0:00:15]} Nxb6 {[%emt 0:00:00]} 18. Nxe4 {[%emt 0:00:03]} Bxe4 {[%emt 0:00:00]} 19. Nh4 {[%emt 0:01:34]} Bxg2 {[%emt 0:00:00]} 20. Nxg2 {[%emt 0:00:01]} Rd8 {[%emt 0:00:00]} 21. Bc7 {[%emt 0:02:05]} Rxd5 {[%emt 0:00:00]} 22. Bxb6 {[%emt 0:00:08]} Bxb2+ {[%emt 0:00:00]} 23. Kxb2 {[%emt 0:00:02]} Rxd1 {[%emt 0:00:00]} 24. Bxc5 {[%emt 0:00:28]} g5 {[%emt 0:01:57]} 25. h4 {[%emt 0:06:55]} f6 {[%emt 0:02:03]} 26. Be3 {[%emt 0:02:33]} Rd5 {[%emt 0:03:30]} 27. a4 {[%emt 0:01:33]} Rf5 {[%emt 0:00:00]} 28. Bb6 {[%emt 0:04:24]} Kf7 {[%emt 0:00:00]} 29. a5 {[%emt 0:01:31]} Re5 {[%emt 0:00:04]} 30. Kc3 {[%emt 0:01:34]} Ke6 {[%emt 0:01:01]} 31. Kd3 {[%emt 0:01:19]} Rd5+ {[%emt 0:00:23]} 32. Kc3 {[%emt 0:01:18]} Rf5 {[%emt 0:00:15]} 33. Kc4 {[%emt 0:01:30]} Rf3 {[%emt 0:00:43]} 34. Bc7 {[%emt 0:00:06]} Kd7 {[%emt 0:00:45]} 35. Bb8 {[%emt 0:00:24]} Kc8 {[%emt 0:00:09]} 36. Bd6 {[%emt 0:00:01]} Kd7 {[%emt 0:00:04]} 37. Bb8 {[%emt 0:07:06]} Rf5 {[%emt 0:00:29]} 38. Kb4 {[%emt 0:00:00]} Ke6 {[%emt 0:00:55]} 39. c4 {[%emt 0:00:00]} Kd7 {[%emt 0:00:57]} 40. Ne3 {[%emt 0:00:00]} Rf3 {[%emt 0:00:31]} 41. Nd5 {[%emt 0:00:00]} Kc8 {[%emt 0:00:23]} 42. Bd6 {[%emt 0:00:00]} Kd7 {[%emt 0:00:09]} 43. Kc5 {[%emt 0:00:00]} Rf5 {[%emt 0:00:59]} 44. Bb8 {[%emt 0:00:00]} Kc8 {[%emt 0:00:16] [#]} 45. Bd6 $2 {[%emt 0:00:00]} (45. Bf4 $1 $18 Kd7 46. Kb6) 45... Kd7 {[%emt 0:00:00] [#]} 46. Bb8 $2 {[%emt 0:00:00]} (46. Bf4 $1 $18 Ke6 47. Kd4 Rxf4+ 48. gxf4 gxh4 49. Ke3) 46... Kc8 $18 {[%emt 0:01:57]} 47. Bc7 {[%emt 0:05:00]} Rxd5+ {[%emt 0:00:30]} 48. cxd5 {[%emt 0:00:30]} Kxc7 49. d6+ Kd7 50. Kb6 {[%emt 0:01:00]} gxh4 {[%emt 0:01:30]} 51. gxh4 f5 52. Kxb7 {[%emt 0:01:00]} f4 53. Kxa6 {[%emt 0:00:30]} f3 54. Kb7 {[%emt 0:00:30]} f2 55. a6 1/2-1/2

[Event "Marshall CC U2400 October 2024"]
[Site "New York"]
[Date "2024.10.19"]
[Round "1.9"]
[White "Solomon, Ciprian"]
[Black "Wu, Darren P"]
[Result "1-0"]
[ECO "A11"]
[WhiteElo "1905"]
[BlackElo "1991"]
[Annotator "RC"]
[PlyCount "137"]
[EventDate "2024.04.20"]
[EventType "swiss"]
[EventCountry "USA"]
[SourceTitle "playchess.com"]
[Source "ChessBase"]
[SourceQuality "1"]
[TimeControl "5400+30"]

1. c4 {[%emt 0:00:57]} c6 {[%emt 0:00:08]} 2. Nf3 {[%emt 0:00:40]} d5 {[%emt 0:00:27]} 3. Qc2 {[%emt 0:00:55]} Nf6 {[%emt 0:01:09]} 4. b3 {[%emt 0:00:25]} Bg4 {[%emt 0:01:14]} 5. Ne5 {[%emt 0:02:41]} Bh5 {[%emt 0:01:11]} 6. Bb2 {[%emt 0:00:46]} e6 {[%emt 0:00:56]} 7. a3 {[%emt 0:01:13]} Bd6 {[%emt 0:01:02]} 8. d3 {[%emt 0:04:59]} O-O {[%emt 0:04:47]} 9. h3 {[%emt 0:00:55]} Qc7 {[%emt 0:02:18]} 10. Nf3 {[%emt 0:02:19]} Nbd7 {[%emt 0:01:03]} 11. Nbd2 {[%emt 0:01:12]} Rfe8 {[%emt 0:03:12]} 12. e3 {[%emt 0:02:39]} e5 {[%emt 0:01:53]} 13. e4 {[%emt 0:03:10]} dxe4 {[%emt 0:04:43]} 14. dxe4 {[%emt 0:00:16]} Rad8 {[%emt 0:02:46]} 15. b4 {[%emt 0:01:19]} c5 {[%emt 0:01:55]} 16. b5 {[%emt 0:00:32]} Nf8 {[%emt 0:02:24]} 17. O-O-O {[%emt 0:11:10]} Ne6 {[%emt 0:02:11]} 18. Bd3 {[%emt 0:03:22]} Nd4 {[%emt 0:01:24]} 19. Qb1 {[%emt 0:04:38]} Bf8 {[%emt 0:01:52]} 20. g4 {[%emt 0:01:13]} Bg6 {[%emt 0:01:41]} 21. Nxd4 {[%emt 0:01:51]} cxd4 {[%emt 0:02:55]} 22. f3 {[%emt 0:01:34]} Nd7 {[%emt 0:02:29]} 23. Nb3 {[%emt 0:00:21]} Nc5 {[%emt 0:02:22]} 24. Nxc5 {[%emt 0:00:10]} Bxc5 {[%emt 0:00:33]} 25. Qc2 {[%emt 0:00:18]} Qe7 {[%emt 0:01:57]} 26. h4 {[%emt 0:01:00]} f6 {[%emt 0:01:04]} 27. Qb3 {[%emt 0:01:17]} Rc8 {[%emt 0:02:36]} 28. Kb1 {[%emt 0:00:11]} Bf7 {[%emt 0:03:33]} 29. Rhg1 {[%emt 0:00:14]} Bb6 {[%emt 0:04:05]} 30. Rg2 {[%emt 0:03:04]} Qc7 {[%emt 0:01:36]} 31. Rc1 {[%emt 0:00:07]} Be6 {[%emt 0:01:59]} 32. g5 {[%emt 0:00:53]} Qf7 {[%emt 0:00:50]} 33. gxf6 {[%emt 0:01:09]} Qxf6 {[%emt 0:00:42]} 34. Rg5 {[%emt 0:05:14]} Re7 {[%emt 0:04:36]} 35. Rcg1 {[%emt 0:03:35]} Rf7 {[%emt 0:05:55]} 36. R1g3 {[%emt 0:03:50]} Qe7 {[%emt 0:02:42]} 37. h5 {[%emt 0:07:28]} Qc7 {[%emt 0:02:38]} 38. h6 {[%emt 0:00:27]} g6 {[%emt 0:01:25]} 39. Rxg6+ {[%emt 0:00:38]} hxg6 {[%emt 0:00:33]} 40. Rxg6+ {[%emt 0:00:08]} Kh7 {[%emt 0:01:31]} 41. Rxe6 {[%emt 0:00:11]} Rxf3 {[%emt 0:00:40]} 42. Qd1 {[%emt 0:01:15]} Rcf8 {[%emt 0:01:18]} 43. Be2 {[%emt 0:03:07]} R3f6 {[%emt 0:01:07]} 44. Rxf6 {[%emt 0:01:42]} Rxf6 {[%emt 0:00:11]} 45. Bc1 {[%emt 0:00:07]} Bc5 {[%emt 0:02:16]} 46. Bg4 {[%emt 0:00:27]} Qd6 {[%emt 0:02:08]} 47. Bf5+ {[%emt 0:02:11]} Rxf5 {[%emt 0:01:41]} 48. exf5 {[%emt 0:00:07]} Bxa3 {[%emt 0:00:18]} 49. Qg1 {[%emt 0:11:18]} Qb4+ {[%emt 0:03:24]} 50. Ka2 {[%emt 0:00:27]} Qxc4+ {[%emt 0:01:34]} 51. Kxa3 {[%emt 0:00:17]} Qc3+ {[%emt 0:00:10]} 52. Ka2 {[%emt 0:01:56]} Qc4+ {[%emt 0:00:10]} 53. Ka1 {[%emt 0:01:11]} Qa4+ {[%emt 0:00:16]} 54. Kb1 {[%emt 0:00:23]} Qxb5+ {[%emt 0:00:21]} 55. Bb2 {[%emt 0:02:04]} Qd3+ {[%emt 0:00:08]} 56. Kc1 {[%emt 0:01:06]} Qc4+ {[%emt 0:01:54]} 57. Kd2 {[%emt 0:01:42]} Qb4+ {[%emt 0:00:09]} 58. Kd3 {[%emt 0:00:29]} Qb3+ {[%emt 0:00:11]} 59. Ke4 {[%emt 0:00:20]} Qc2+ {[%emt 0:00:09]} 60. Kxe5 {[%emt 0:01:13]} Qc7+ {[%emt 0:00:13]} 61. Ke4 {[%emt 0:00:42]} Qc2+ {[%emt 0:00:21]} 62. Kf4 {[%emt 0:01:19]} Qd2+ {[%emt 0:00:22]} 63. Kf3 {[%emt 0:01:36]} Qd3+ {[%emt 0:00:09]} 64. Kg4 {[%emt 0:02:00]} Qe2+ {[%emt 0:00:31]} 65. Kh4 {[%emt 0:00:48]} Qe4+ {[%emt 0:00:35]} 66. Qg4 {[%emt 0:00:44]} Qe1+ {[%emt 0:00:44]} 67. Kg5 {[%emt 0:02:07]} Qd2+ {[%emt 0:00:36]} 68. Kf6 {[%emt 0:00:36]} Qxh6+ {[%emt 0:00:27]} 69. Qg6+ {[%emt 0:00:05]} 1-0

[Event "Marshall CC U2400 October 2024"]
[Site "New York"]
[Date "2024.10.19"]
[Round "1.10"]
[White "Yu, Dylan Fountain"]
[Black "Lu, Lucas"]
[Result "1-0"]
[ECO "B28"]
[WhiteElo "1841"]
[BlackElo "1871"]
[Annotator "NA RC"]
[PlyCount "67"]
[EventDate "2024.04.20"]
[EventType "swiss"]
[EventCountry "USA"]
[SourceTitle "playchess.com"]
[Source "ChessBase"]
[SourceQuality "1"]
[TimeControl "5400+30"]

1. e4 {[%emt 0:00:08]} c5 {[%emt 0:00:31]} 2. d4 {[%emt 0:00:15]} cxd4 {[%emt 0:00:04]} 3. Nf3 {[%emt 0:00:08]} a6 {[%emt 0:00:08]} 4. Nxd4 {[%emt 0:00:58]} Nf6 {[%emt 0:00:34]} 5. Bd3 {[%emt 0:02:05]} e5 {[%emt 0:02:49]} 6. Nf3 {[%emt 0:03:42]} Nc6 {[%emt 0:07:22] B28: Sicilian: 2 Nf3 a6 (O'Kelly Variation).} 7. Nc3 {[%emt 0:06:22]} Bb4 {[%emt 0:02:19]} 8. O-O {[%emt 0:00:41]} Bxc3 {[%emt 0:00:15]} 9. bxc3 {[%emt 0:00:09]} O-O {[%emt 0:02:08]} 10. Ng5 {[%emt 0:12:14]} h6 {[%emt 0:01:55]} 11. Nh3 {[%emt 0:00:50]} d5 {[%emt 0:04:47]} 12. exd5 {[%emt 0:02:58]} Qxd5 {[%emt 0:00:59]} 13. f4 {[%emt 0:10:05]} Bxh3 {[%emt 0:00:38]} 14. gxh3 {[%emt 0:00:25]} e4 {[%emt 0:00:06]} 15. Be2 {[%emt 0:00:43]} Qc5+ {[%emt 0:00:47]} 16. Kh1 {[%emt 0:00:23]} Qxc3 {[%emt 0:00:56]} 17. Rb1 {[%emt 0:02:02]} Rad8 {[%emt 0:05:13]} ({Finger weg von} 17... Qxh3 18. Rb3 Qf5 19. Bb2 $19) 18. Qe1 {[%emt 0:01:02]} Qxc2 {[%emt 0:00:37]} 19. Rxb7 {[%emt 0:03:03]} Nd4 {[%emt 0:01:59]} 20. Rb2 {[%emt 0:00:44]} Qc6 {[%emt 0:00:49]} 21. Qg3 {[%emt 0:01:34]} e3+ {[%emt 0:04:51]} 22. Qg2 {[%emt 0:03:14]} Qc3 {[%emt 0:03:24]} 23. Rb6 {[%emt 0:03:27]} Nd5 {[%emt 0:03:13]} 24. Bb2 {[%emt 0:03:59]} Qd2 {[%emt 0:02:14]} 25. Rg1 {[%emt 0:01:10]} g5 {[%emt 0:11:11]} 26. Rxh6 {[%emt 0:03:40]} f6 {[%emt 0:04:22] [#]} 27. Qe4 $1 {[%emt 0:09:28]} Rd7 {[%emt 0:05:24]} 28. fxg5 {[%emt 0:03:43]} f5 {[%emt 0:05:55]} 29. Qxd4 {[%emt 0:08:19]} (29. Qe5 $142 Rh7 30. Qxd5+ Kg7 31. Qd7+ (31. Qxd4+ Qxd4 32. Bxd4+ Kf7 33. g6+ Ke6 34. g7+ Rf6 35. g8=Q+ Kd7 36. Rxh7+ Kc6 37. Rc1+ Kd6 38. Qd8+ Ke6 39. Re7#) (31. Qe5+ Kg8 32. Bc4+ Rff7 33. Qe8+ Kg7 34. Qxf7+ Kh8 35. Rxh7#) 31... Rf7 32. Rxh7+ (32. Qxd4+ Qxd4 33. Bxd4+ Kf8 $18) 32... Kxh7 33. Qxf7+ Kh8 34. Qf8+ Kh7 35. g6#) 29... Qxe2 {[%emt 0:02:15]} 30. Rh8+ {[%emt 0:03:06]} Kf7 {[%emt 0:00:27]} 31. g6+ {[%emt 0:00:06]} Ke8 {[%emt 0:01:14]} 32. Qe5+ {[%emt 0:00:49]} Re7 {[%emt 0:00:42]} 33. Rxf8+ {[%emt 0:00:36]} Kd7 {[%emt 0:00:08]} 34. Qxd5+ {[%emt 0:00:09]} 1-0

[Event "Marshall CC U2400 October 2024"]
[Site "New York"]
[Date "2024.10.19"]
[Round "2.1"]
[White "Larsen, Jeremy"]
[Black "Sarkar, Justin"]
[Result "0-1"]
[ECO "A04"]
[WhiteElo "1933"]
[BlackElo "2275"]
[Annotator "RC"]
[PlyCount "74"]
[EventDate "2024.04.20"]
[EventType "swiss"]
[EventCountry "USA"]
[SourceTitle "playchess.com"]
[Source "ChessBase"]
[SourceQuality "1"]
[TimeControl "5400+30"]

1. e4 {[%emt 0:12:52]} c5 {[%emt 0:00:15]} 2. Nf3 {[%emt 0:00:02]} e6 {[%emt 0:00:33]} 3. d3 {[%emt 0:00:05]} Nc6 {[%emt 0:00:20]} 4. g3 {[%emt 0:00:21]} g6 {[%emt 0:04:30]} 5. Bg2 {[%emt 0:00:07]} Bg7 {[%emt 0:00:06]} 6. O-O {[%emt 0:00:19]} Nge7 {[%emt 0:00:15]} 7. c3 {[%emt 0:01:06]} e5 {[%emt 0:06:06]} 8. Nbd2 {[%emt 0:01:32]} O-O {[%emt 0:00:19]} 9. Re1 {[%emt 0:01:43]} f5 {[%emt 0:06:27]} 10. exf5 {[%emt 0:02:01]} gxf5 {[%emt 0:02:58]} 11. Nf1 {[%emt 0:09:17]} d5 {[%emt 0:01:21]} 12. Bg5 {[%emt 0:03:15]} Qd6 {[%emt 0:19:47]} 13. Bxe7 {[%emt 0:08:52]} Nxe7 {[%emt 0:00:41]} 14. Qe2 {[%emt 0:01:17]} Ng6 {[%emt 0:02:07]} 15. Rad1 {[%emt 0:01:29]} Bd7 {[%emt 0:03:50]} 16. h4 {[%emt 0:01:22]} Rae8 {[%emt 0:01:25]} 17. h5 {[%emt 0:06:10]} Nh8 {[%emt 0:00:11]} 18. N1h2 {[%emt 0:03:43]} Nf7 {[%emt 0:00:58]} 19. Nd2 {[%emt 0:07:37]} b5 {[%emt 0:14:40]} 20. g4 {[%emt 0:02:27]} Ng5 {[%emt 0:02:38]} 21. Ndf3 {[%emt 0:00:42]} Ne6 {[%emt 0:01:05]} 22. Nh4 {[%emt 0:05:31]} Nf4 {[%emt 0:00:22]} 23. Qf3 {[%emt 0:00:32]} e4 {[%emt 0:07:55]} 24. dxe4 {[%emt 0:01:25]} fxe4 {[%emt 0:00:38]} 25. Qe3 {[%emt 0:03:40]} d4 {[%emt 0:02:22]} 26. cxd4 {[%emt 0:00:58]} Bxd4 {[%emt 0:02:49]} 27. Qb3+ {[%emt 0:05:21]} Be6 {[%emt 0:09:26]} 28. Qc2 {[%emt 0:01:34]} Nd3 {[%emt 0:05:00]} 29. Rxe4 {[%emt 0:03:05]} Nxf2 {[%emt 0:03:11]} 30. Rexd4 {[%emt 0:01:33]} cxd4 {[%emt 0:00:06]} 31. Rf1 {[%emt 0:04:19]} Nxg4 {[%emt 0:00:09]} 32. Nxg4 {[%emt 0:01:38]} Bxg4 {[%emt 0:00:19]} 33. Nf5 {[%emt 0:00:25]} Bxf5 {[%emt 0:00:49]} 34. Rxf5 {[%emt 0:00:06]} Rxf5 {[%emt 0:01:53]} 35. Qxf5 {[%emt 0:00:07]} Qe5 {[%emt 0:00:22]} 36. Qd7 {[%emt 0:04:33]} Qe3+ {[%emt 0:02:37]} 37. Kh2 {[%emt 0:00:28]} Qf4+ {[%emt 0:00:00]} 0-1

[Event "Marshall CC U2400 October 2024"]
[Site "New York"]
[Date "2024.10.19"]
[Round "2.2"]
[White "Paragua, Megan Althea"]
[Black "Baranwal, Suvan"]
[Result "1-0"]
[ECO "B30"]
[WhiteElo "2190"]
[BlackElo "1794"]
[Annotator "RC"]
[PlyCount "95"]
[EventDate "2024.04.20"]
[EventType "swiss"]
[EventCountry "USA"]
[SourceTitle "playchess.com"]
[Source "ChessBase"]
[SourceQuality "1"]
[TimeControl "5400+30"]

1. e4 {[%emt 0:00:52]} c5 {[%emt 0:00:04]} 2. Nf3 {[%emt 0:00:26]} e6 {[%emt 0:00:06]} 3. Nc3 {[%emt 0:00:10]} Nc6 {[%emt 0:00:07]} 4. Bb5 {[%emt 0:00:18]} Nge7 {[%emt 0:03:18]} 5. O-O {[%emt 0:01:25]} a6 {[%emt 0:03:07]} 6. Bxc6 {[%emt 0:00:30]} Nxc6 {[%emt 0:00:03]} 7. d4 {[%emt 0:01:04]} cxd4 {[%emt 0:01:50]} 8. Nxd4 {[%emt 0:00:04]} Qc7 {[%emt 0:02:44]} 9. Re1 {[%emt 0:00:54]} Be7 {[%emt 0:05:16]} 10. Nxc6 {[%emt 0:05:59]} bxc6 {[%emt 0:10:35]} 11. e5 {[%emt 0:00:55]} O-O {[%emt 1:08:50]} 12. Bf4 {[%emt 0:01:44]} f5 {[%emt 0:00:00]} 13. Qd2 {[%emt 0:05:44]} Qd8 {[%emt 0:00:00]} 14. Na4 {[%emt 0:02:58]} Rb8 {[%emt 0:00:00]} 15. b3 {[%emt 0:09:09]} g5 {[%emt 0:00:00]} 16. Be3 {[%emt 0:00:33]} Rb5 {[%emt 0:00:00]} 17. f4 {[%emt 0:03:09]} d6 {[%emt 0:00:00]} 18. c4 {[%emt 0:05:43]} Rb7 {[%emt 0:00:00]} 19. exd6 {[%emt 0:03:00]} Bxd6 {[%emt 0:00:00]} 20. Red1 {[%emt 0:01:36]} Rd7 {[%emt 0:00:00]} 21. Nb6 {[%emt 0:01:23]} Bb4 {[%emt 0:00:00]} 22. Qe2 {[%emt 0:00:47]} Rxd1+ {[%emt 0:00:00]} 23. Rxd1 {[%emt 0:00:04]} Qc7 {[%emt 0:00:00]} 24. Nxc8 {[%emt 0:02:55]} Rxc8 {[%emt 0:00:00]} 25. Bd4 {[%emt 0:05:55]} Rd8 {[%emt 0:00:00]} 26. Qxe6+ {[%emt 0:01:10]} Qf7 {[%emt 0:00:00]} 27. Qe5 {[%emt 0:00:09]} Qf8 {[%emt 0:00:48]} 28. Qh8+ {[%emt 0:00:32]} Kf7 {[%emt 0:00:01]} 29. Qxh7+ {[%emt 0:02:40]} Ke8 {[%emt 0:00:04]} 30. Qh5+ {[%emt 0:00:06]} Qf7 {[%emt 0:00:44]} 31. Qh8+ {[%emt 0:00:02]} Qf8 {[%emt 0:01:35]} 32. Qxf8+ {[%emt 0:01:26]} Bxf8 {[%emt 0:00:34]} 33. Re1+ {[%emt 0:00:02]} Kf7 {[%emt 0:00:25]} 34. Bb6 {[%emt 0:00:05]} Rd2 {[%emt 0:00:35]} 35. fxg5 {[%emt 0:00:07]} Rxa2 {[%emt 0:00:35]} 36. h4 {[%emt 0:00:33]} Kg6 {[%emt 0:05:44]} 37. Kh2 {[%emt 0:02:12]} Rb2 {[%emt 0:01:09]} 38. Re3 {[%emt 0:00:23]} Kh5 {[%emt 0:00:24]} 39. Kh3 {[%emt 0:00:20]} Bd6 {[%emt 0:00:20]} 40. g3 {[%emt 0:00:31]} Bf8 {[%emt 0:00:37]} 41. Rf3 {[%emt 0:02:50]} Bd6 {[%emt 0:00:09]} 42. Rxf5 {[%emt 0:01:12]} Rxb3 {[%emt 0:00:06]} 43. Bf2 {[%emt 0:00:06]} Be7 {[%emt 0:01:19]} 44. Rf7 {[%emt 0:00:10]} Bd8 {[%emt 0:00:35]} 45. Rd7 {[%emt 0:00:01]} Rf3 {[%emt 0:00:42]} 46. Be1 {[%emt 0:00:39]} Rf8 {[%emt 0:00:10]} 47. Rd6 {[%emt 0:00:05]} Rh8 {[%emt 0:00:05]} 48. g4# {[%emt 0:00:01]} 1-0

[Event "Marshall CC U2400 October 2024"]
[Site "New York"]
[Date "2024.10.19"]
[Round "2.3"]
[White "DeGeest, Rocco Jan"]
[Black "Das, Aditeya"]
[Result "0-1"]
[ECO "B97"]
[WhiteElo "1842"]
[BlackElo "1961"]
[Annotator "RC"]
[PlyCount "82"]
[EventDate "2024.04.20"]
[EventType "swiss"]
[EventCountry "USA"]
[SourceTitle "playchess.com"]
[Source "ChessBase"]
[SourceQuality "1"]
[TimeControl "5400+30"]

1. e4 {[%emt 0:00:05]} c5 {[%emt 0:04:07]} 2. Nf3 {[%emt 0:00:07]} d6 {[%emt 0:00:09]} 3. d4 {[%emt 0:00:08]} cxd4 {[%emt 0:00:06]} 4. Nxd4 {[%emt 0:00:08]} Nf6 {[%emt 0:00:03]} 5. Nc3 {[%emt 0:00:12]} a6 {[%emt 0:00:06]} 6. Bg5 {[%emt 0:00:11]} e6 {[%emt 0:00:07]} 7. f4 {[%emt 0:00:08]} Qb6 {[%emt 0:00:04]} 8. Qd2 {[%emt 0:04:16]} Qxb2 {[%emt 0:00:39]} 9. Rb1 {[%emt 0:00:09]} Qa3 {[%emt 0:00:12]} 10. Be2 {[%emt 0:03:03]} Be7 {[%emt 0:01:59]} 11. Rb3 {[%emt 0:02:12]} Qa5 {[%emt 0:00:34]} 12. O-O {[%emt 0:01:43]} h6 {[%emt 0:01:17]} 13. Bh4 {[%emt 0:00:43]} Nxe4 {[%emt 0:00:32]} 14. Nxe4 {[%emt 0:00:08]} Qxd2 {[%emt 0:00:11]} 15. Nxd2 {[%emt 0:00:07]} Bxh4 {[%emt 0:00:04]} 16. Nc4 {[%emt 0:00:09]} Bf6 {[%emt 0:02:59]} 17. Rd1 {[%emt 0:00:55]} Ke7 {[%emt 0:02:55]} 18. Bf3 {[%emt 0:01:36]} d5 {[%emt 0:00:59]} 19. Nb6 {[%emt 0:00:10]} Ra7 {[%emt 0:00:03]} 20. c4 {[%emt 0:05:16]} dxc4 {[%emt 0:02:15]} 21. Rb4 {[%emt 0:04:37]} Rd8 {[%emt 0:02:40]} 22. Rxc4 {[%emt 0:00:20]} Bd7 {[%emt 0:10:35]} 23. Rc7 {[%emt 0:02:08]} Ke8 {[%emt 0:00:38]} 24. Nb3 {[%emt 0:01:56]} Bc6 {[%emt 0:02:58]} 25. Rc8 {[%emt 0:05:31]} Bxf3 {[%emt 0:02:36]} 26. gxf3 {[%emt 0:00:46]} Nc6 {[%emt 0:00:52]} 27. Kf1 {[%emt 0:03:59]} a5 {[%emt 0:01:40]} 28. Rcxd8+ {[%emt 0:01:10]} Nxd8 {[%emt 0:05:03]} 29. Nc8 {[%emt 0:06:54]} Ra8 {[%emt 0:02:20]} 30. Nd6+ {[%emt 0:00:16]} Ke7 {[%emt 0:00:59]} 31. Nb5 {[%emt 0:01:07]} a4 {[%emt 0:56:18]} 32. Nc5 {[%emt 0:01:14]} Ra5 {[%emt 0:00:00]} 33. Rd7+ {[%emt 0:00:06]} Kf8 {[%emt 0:00:00]} 34. Nxb7 {[%emt 0:00:08]} Rxb5 {[%emt 0:00:00]} 35. Nxd8 {[%emt 0:00:04]} Ke8 {[%emt 0:00:00]} 36. Rb7 {[%emt 0:00:09]} Rb2 {[%emt 0:00:00]} 37. Nxf7 {[%emt 0:02:41]} Rxb7 {[%emt 0:00:00]} 38. Nd6+ {[%emt 0:00:05]} Kd7 {[%emt 0:00:00]} 39. Nxb7 {[%emt 0:00:04]} Kc6 {[%emt 0:00:00]} 40. Na5+ {[%emt 0:00:18]} Kb5 {[%emt 0:00:00]} 41. Nb7 {[%emt 0:00:07]} Be7 {[%emt 0:00:00]} 0-1

[Event "Marshall CC U2400 October 2024"]
[Site "New York"]
[Date "2024.10.19"]
[Round "2.4"]
[White "Knowles, Chase"]
[Black "Yu, Dylan Fountain"]
[Result "1/2-1/2"]
[ECO "A11"]
[WhiteElo "1966"]
[BlackElo "1841"]
[Annotator "RC"]
[PlyCount "82"]
[EventDate "2024.04.20"]
[EventType "swiss"]
[EventCountry "USA"]
[SourceTitle "playchess.com"]
[Source "ChessBase"]
[SourceQuality "1"]
[TimeControl "5400+30"]

1. Nf3 {[%emt 0:03:43]} d5 {[%emt 0:00:18]} 2. c4 {[%emt 0:00:20]} e6 {[%emt 0:00:22]} 3. e3 {[%emt 0:00:06]} Nf6 {[%emt 0:00:15]} 4. Nc3 {[%emt 0:00:13]} c6 {[%emt 0:00:27]} 5. b3 {[%emt 0:02:33]} Nbd7 {[%emt 0:05:25]} 6. Qc2 {[%emt 0:00:40]} e5 {[%emt 0:01:17]} 7. cxd5 {[%emt 0:00:44]} Nxd5 {[%emt 0:00:49]} 8. Nxd5 {[%emt 0:04:56]} cxd5 {[%emt 0:00:13]} 9. Bb2 {[%emt 0:00:56]} f6 {[%emt 0:04:04]} 10. Qf5 {[%emt 0:02:43]} Nc5 {[%emt 0:03:30]} 11. Qc2 {[%emt 0:04:31]} Bd7 {[%emt 0:01:28]} 12. Rc1 {[%emt 0:02:26]} Rc8 {[%emt 0:00:49]} 13. Qb1 {[%emt 0:00:17]} Bd6 {[%emt 0:03:20]} 14. Be2 {[%emt 0:00:48]} O-O {[%emt 0:00:29]} 15. O-O {[%emt 0:00:37]} e4 {[%emt 0:02:00]} 16. Nd4 {[%emt 0:02:18]} f5 {[%emt 0:02:15]} 17. f4 {[%emt 0:05:34]} exf3 {[%emt 0:03:50]} 18. Nxf3 {[%emt 0:02:48]} f4 {[%emt 0:01:46]} 19. b4 {[%emt 0:04:49]} Ne4 {[%emt 0:03:52]} 20. Qd3 {[%emt 0:02:57]} Be6 {[%emt 0:10:36]} 21. Nd4 {[%emt 0:04:11]} Rxc1 {[%emt 0:00:46]} 22. Bxc1 {[%emt 0:05:11]} fxe3 {[%emt 0:05:49]} 23. Qxe3 {[%emt 0:08:44]} Rxf1+ {[%emt 0:10:12]} 24. Bxf1 {[%emt 0:01:35]} Bf7 {[%emt 0:07:05]} 25. Bb2 {[%emt 0:08:48]} Bxb4 {[%emt 0:01:16]} 26. d3 {[%emt 0:02:01]} Nf6 {[%emt 0:00:52]} 27. Nf5 {[%emt 0:01:41]} Bg6 {[%emt 0:01:44]} 28. Nh4 {[%emt 0:03:12]} Qe7 {[%emt 0:04:50]} 29. Qg3 {[%emt 0:07:27]} Bd6 {[%emt 0:06:52]} 30. Qf3 {[%emt 0:04:06]} Be5 {[%emt 0:02:31]} 31. Nxg6 {[%emt 0:03:03]} hxg6 {[%emt 0:00:08]} 32. d4 {[%emt 0:00:13]} Bd6 {[%emt 0:01:16]} 33. g3 {[%emt 0:02:11]} Qe1 {[%emt 0:02:18]} 34. Qe2 {[%emt 0:02:44]} Qxe2 {[%emt 0:00:34]} 35. Bxe2 {[%emt 0:00:02]} Kf7 {[%emt 0:00:51]} 36. Bd3 {[%emt 0:00:44]} Bc7 {[%emt 0:01:10]} 37. Kg2 {[%emt 0:00:41]} Bb6 {[%emt 0:01:40]} 38. Kf3 {[%emt 0:00:26]} g5 {[%emt 0:01:02]} 39. Bf5 {[%emt 0:00:24]} Ne8 {[%emt 0:01:05]} 40. Kg4 {[%emt 0:02:45]} Kf6 {[%emt 0:02:39]} 41. Bc2 {[%emt 0:00:22]} Nd6 {[%emt 0:01:22]} 1/2-1/2